bitfinex-derivatives/quotes_BTCF0:USTF0_20250810
["timestamp","ask_amount","ask_price","bid_price","bid_amount"]
[1754863666944,0.13911167,118900.0,118890.0,1.244717]
[1754863667140,0.1180481,118900.0,118890.0,1.46938847]
[1754863667545,0.001,118900.0,118890.0,1.46938847]
[1754863671257,0.02384,118900.0,118890.0,1.244717]
[1754863671453,0.02384,118900.0,118890.0,1.46938847]
[1754863673145,0.04495237,118900.0,118890.0,1.46938847]
[1754863674752,0.04496564,118900.0,118890.0,1.46938847]
[1754863680258,0.04496564,118900.0,118890.0,1.74919894]
[1754863682857,0.04496564,118900.0,118890.0,0.96835894]
[1754863683061,0.04496564,118900.0,118890.0,1.74767894]
[1754863683960,0.04496564,118900.0,118890.0,1.243197]
[1754863684260,0.04496564,118900.0,118890.0,1.74767894]
[1754863686163,0.02384,118900.0,118890.0,1.74767894]
[1754863686967,0.04496654,118900.0,118890.0,1.74767894]
[1754863687166,0.02384,118900.0,118890.0,1.74767894]
[1754863688367,0.001,118900.0,118890.0,1.76484916]
[1754863690066,0.001,118900.0,118890.0,1.76584916]
[1754863692171,0.001,118900.0,118890.0,1.48553267]
[1754863692372,0.02252,118910.0,118900.0,0.1028802]
[1754863692569,0.02252,118910.0,118900.0,0.68784565]
[1754863693873,0.02252,118910.0,118900.0,0.68884565]
[1754863694771,0.02252,118910.0,118900.0,0.4646802]
[1754863695068,0.02252,118910.0,118900.0,1.46800565]
[1754863695464,0.02252,118910.0,118900.0,1.46900565]
[1754863698874,0.35700728,118930.0,118920.0,0.01879]
[1754863699074,0.35700728,118930.0,118920.0,1.2428461]
[1754863699075,0.47599853,118930.0,118920.0,1.2428461]
[1754863699268,0.17504425,118930.0,118920.0,1.46701155]
[1754863699573,0.201159,118930.0,118920.0,1.46701155]
[1754863699774,0.11709,118930.0,118920.0,1.46701155]
[1754863699977,0.06986,118930.0,118920.0,1.46701155]
[1754863700280,0.201159,118930.0,118920.0,1.46701155]
[1754863700775,0.21066142,118930.0,118920.0,1.2428061]
[1754863711986,0.001,118930.0,118920.0,1.691137]
[1754863712187,0.001,118930.0,118920.0,1.46697155]
[1754863714090,0.001,118930.0,118920.0,1.82777155]
[1754863715194,0.04981177,118950.0,118940.0,0.093732]
[1754863715382,0.04981177,118950.0,118940.0,1.46571745]
[1754863715581,0.13386667,118950.0,118940.0,1.46571745]
[1754863715991,0.12564082,118950.0,118940.0,1.46571745]
[1754863716389,0.12564082,118950.0,118940.0,0.462752]
[1754863716590,0.46628674,118950.0,118940.0,0.084162]
[1754863716792,0.46628674,118950.0,118940.0,0.862922]
[1754863716997,0.22842129,118950.0,118940.0,0.880842]
[1754863717200,0.24212129,118950.0,118940.0,0.880842]
[1754863717398,0.24412129,118950.0,118940.0,0.880842]
[1754863717691,0.22303082,118950.0,118940.0,0.880842]
[1754863717891,0.22303082,118950.0,118940.0,1.241642]
[1754863718096,0.22103082,118950.0,118940.0,1.241642]
[1754863718400,0.22203082,118950.0,118940.0,1.241642]
[1754863718602,0.23027373,118950.0,118940.0,1.241642]
[1754863718892,0.25127879,118950.0,118940.0,1.241642]
[1754863719294,0.23027373,118950.0,118940.0,1.241642]
[1754863719600,0.001,118950.0,118940.0,1.46580745]
[1754863719900,0.0242,118950.0,118940.0,1.46580745]
[1754863720898,0.00841287,118970.0,118960.0,0.1009679]
[1754863721197,0.09516,118980.0,118970.0,0.1009608]
[1754863721394,0.11614886,118980.0,118970.0,0.1010608]
[1754863721593,0.11614886,118980.0,118970.0,2.01709025]
[1754863721594,6e-08,118980.0,118970.0,2.01709025]
[1754863721794,0.58009589,119040.0,119010.0,0.0840126]
[1754863721995,0.09611,119020.0,119010.0,0.30844805]
[1754863722194,0.11201589,119040.0,119030.0,0.0841685]
[1754863722394,0.11201589,119040.0,119030.0,0.8627685]
[1754863722593,0.47281589,119040.0,119030.0,0.8627685]
[1754863722993,0.55680729,119040.0,119030.0,0.8627685]
[1754863723200,0.47291589,119040.0,119030.0,0.8628685]
[1754863723403,0.78107274,119040.0,119030.0,0.8628685]
[1754863723603,0.78946965,119040.0,119030.0,0.8628685]
[1754863723798,0.78946965,119040.0,119030.0,0.0001]
[1754863724012,0.81266965,119040.0,119030.0,0.7787]
[1754863724205,0.81466965,119040.0,119030.0,0.7787]
[1754863724591,0.81466965,119040.0,119030.0,0.0001]
[1754863724903,0.81466965,119040.0,119030.0,0.77854]
[1754863726094,0.81466965,119040.0,119030.0,0.0001]
[1754863726292,0.2022726,119010.0,119000.0,0.00017]
[1754863726499,0.5630726,119010.0,119000.0,0.7784]
[1754863726806,0.78723805,119010.0,119000.0,0.7784]
[1754863726992,0.78723805,119010.0,118990.0,0.5291805]
[1754863726993,0.1089797,119000.0,118990.0,0.5291805]
[1754863727304,0.2022867,118990.0,118980.0,0.10312145]
[1754863727499,0.2022867,118990.0,118980.0,0.88162145]
[1754863727895,0.2022867,118990.0,118980.0,0.8630638]
[1754863728695,0.1073197,119000.0,118990.0,0.0845567]
[1754863728900,0.0233,119000.0,118990.0,0.66952215]
[1754863729801,0.0001,119000.0,118990.0,0.67052215]
[1754863730401,0.23304914,119020.0,119010.0,0.00017]
[1754863730402,0.0232,119020.0,119010.0,0.00017]
[1754863730702,0.0232,119030.0,119020.0,0.2522782]
[1754863730903,0.0232,119030.0,119020.0,0.83724365]
[1754863731509,0.0232,119040.0,119030.0,0.0842693]
[1754863731809,0.0001,119040.0,119030.0,1.44743475]
[1754863732202,0.0001,119040.0,119030.0,1.5378315]
[1754863732608,0.0233,119040.0,119030.0,1.5378315]
[1754863732814,0.0001,119040.0,119030.0,1.5378315]
[1754863734012,0.0011,119040.0,119030.0,1.5378315]
[1754863734406,0.001,119040.0,119030.0,1.5378315]
[1754863736307,0.0242,119040.0,119030.0,1.2231093]
[1754863736610,0.0233,119040.0,119030.0,1.2242093]
[1754863737513,0.0001,119040.0,119030.0,1.2242093]
[1754863737712,0.0233,119040.0,119030.0,1.2242093]
[1754863740121,0.0233,119040.0,119030.0,1.5387715]
[1754863740307,0.0233,119040.0,119030.0,0.4460693]
[1754863740514,0.5169144,119040.0,119030.0,0.8629393]
[1754863740821,0.2023522,119040.0,119030.0,0.8629393]
[1754863742322,0.2023522,119040.0,119030.0,0.0850993]
[1754863742615,0.2023522,119040.0,119030.0,0.8628993]
[1754863744222,0.22303161,119040.0,119030.0,0.8628993]
[1754863744423,0.22303161,119040.0,119030.0,0.0850993]
[1754863744724,0.22303161,119040.0,119030.0,0.8628993]
[1754863746531,0.22303161,119040.0,119030.0,0.0850993]
[1754863746724,1.06640981,119040.0,119030.0,0.0011]
[1754863746920,0.2000893,119030.0,119020.0,0.79638808]
[1754863747120,0.89613091,119030.0,119020.0,0.77772]
[1754863747423,0.1314234,119010.0,119000.0,0.01855175]
[1754863747618,0.89614501,119010.0,119000.0,0.10257225]
[1754863747824,0.2001175,118990.0,118980.0,0.16949724]
[1754863748011,0.58159691,118990.0,118980.0,0.94721724]
[1754863748216,0.22079691,118990.0,118980.0,0.96985724]
[1754863748417,0.02067941,118990.0,118980.0,0.96985724]
[1754863748620,0.02067941,118990.0,118980.0,1.64521944]
[1754863749222,0.02067941,118990.0,118980.0,1.33065724]
[1754863749516,0.10470691,118990.0,118980.0,0.96985724]
[1754863750026,0.22079691,118990.0,118980.0,0.19213724]
[1754863750222,0.53535911,118990.0,118980.0,0.94725724]
[1754863750417,0.53535911,118990.0,118980.0,0.95225724]
[1754863750620,0.02067941,118990.0,118980.0,1.29245944]
[1754863751016,0.02067941,118990.0,118980.0,1.65325944]
[1754863754121,0.09512,119010.0,119000.0,0.0997505]
[1754863754320,0.2208974,119010.0,119000.0,0.8618205]
[1754863754520,0.2208974,119010.0,119000.0,0.8918305]
[1754863754726,0.2208974,119010.0,119000.0,0.9075605]
[1754863754927,0.136884,119010.0,119000.0,0.9286005]
[1754863755128,0.136884,119010.0,119000.0,0.9512405]
[1754863757632,0.2208974,119010.0,119000.0,0.9512405]
[1754863758929,0.136884,119010.0,119000.0,0.9512405]
[1754863759536,0.136884,119010.0,119000.0,1.3120405]
[1754863761229,0.136884,119010.0,119000.0,1.3170405]
[1754863761539,0.2208974,119010.0,119000.0,1.3170405]
[1754863761734,0.2208974,119010.0,119000.0,1.3210405]
[1754863762032,0.2208974,119010.0,119000.0,0.9602405]
[1754863762236,0.44477566,119010.0,119000.0,0.9602405]
[1754863762430,0.03182,119000.0,118960.0,0.01883819]
[1754863762631,0.7290107,118980.0,118970.0,0.1734553]
[1754863762837,0.97358296,118980.0,118970.0,1.0319753]
[1754863763030,0.97358296,118980.0,118970.0,1.0093353]
[1754863763240,0.97358296,118980.0,118970.0,0.9253]
[1754863763427,0.7497047,118980.0,118970.0,0.9253]
[1754863763630,0.97358296,118980.0,118970.0,0.03677]
[1754863763933,0.2001316,118970.0,118960.0,0.1598287]
[1754863764129,0.53590821,118970.0,118960.0,0.90741]
[1754863764335,0.53590821,118970.0,118960.0,0.93742]
[1754863764531,0.53590821,118970.0,118960.0,0.009]
[1754863764738,0.89670821,118970.0,118960.0,0.009]
[1754863764929,0.2001458,118950.0,118940.0,0.5116428]
[1754863765131,0.2209398,118950.0,118940.0,1.28902]
[1754863765335,0.55512887,118950.0,118920.0,0.39081]
[1754863765524,0.1071199,118930.0,118920.0,0.534297]
[1754863765840,0.1597339,118930.0,118920.0,1.398457]
[1754863766028,0.043844,118930.0,118920.0,1.398457]
[1754863766228,0.02315,118930.0,118920.0,1.398457]
[1754863766434,0.0212075,118930.0,118920.0,1.398457]
[1754863766636,0.1052774,118930.0,118920.0,1.405457]
[1754863766935,0.0212075,118930.0,118920.0,0.518657]
[1754863767232,0.0212075,118930.0,118920.0,1.33574]
[1754863767233,0.2002599,118930.0,118920.0,1.33574]
[1754863767430,0.22135996,118930.0,118920.0,1.421337]
[1754863767631,0.22135996,118930.0,118920.0,0.554297]
[1754863767837,0.22135996,118930.0,118920.0,1.419737]
[1754863768036,0.58216087,118930.0,118920.0,1.036177]
[1754863768538,0.58216087,118930.0,118920.0,1.058817]
[1754863768938,0.58216087,118930.0,118920.0,0.97474]
[1754863769128,0.22136087,118930.0,118920.0,1.0588161]
[1754863769323,0.22136087,118930.0,118920.0,1.0588169]
[1754863769531,0.17573087,118930.0,118920.0,1.0588169]
[1754863770936,0.02120097,118930.0,118920.0,1.4196169]
[1754863771138,0.02120097,118930.0,118920.0,1.73469951]
[1754863772132,0.0001,118930.0,118920.0,1.73469951]
[1754863772332,0.0001,118930.0,118920.0,1.4196169]
[1754863773039,0.084169,118930.0,118920.0,1.4196169]
[1754863773538,0.0841695,118930.0,118920.0,1.4196169]
[1754863773838,0.0001,118930.0,118920.0,1.4196169]
[1754863779535,0.0841692,118930.0,118920.0,1.4196169]
[1754863779937,0.0841692,118930.0,118920.0,0.1010769]
[1754863780142,0.53724851,118930.0,118920.0,0.9660363]
[1754863780446,0.2221659,118930.0,118920.0,1.0333963]
[1754863780642,0.2221659,118930.0,118920.0,1.0577763]
[1754863781448,0.89804851,118930.0,118920.0,0.017]
[1754863781640,0.89804851,118930.0,118920.0,0.88248]
[1754863782238,0.89804851,118930.0,118920.0,0.017]
[1754863782543,0.96376156,118930.0,118920.0,0.88168]
[1754863782943,1.26376156,118930.0,118920.0,0.017]
[1754863783143,0.2007804,118900.0,118890.0,0.06736]
[1754863783338,0.2221871,118900.0,118890.0,1.0162175]
[1754863783539,0.2221871,118900.0,118890.0,1.0405975]
[1754863784448,0.2221871,118900.0,118890.0,1.0515975]
[1754863785047,0.2221871,118900.0,118890.0,1.0272175]
[1754863785249,0.2231871,118900.0,118890.0,1.0312175]
[1754863785546,0.2231871,118900.0,118890.0,1.0262175]
[1754863785940,0.2221871,118900.0,118890.0,1.0222175]
[1754863786750,1.06628571,118900.0,118890.0,0.9550175]
[1754863787844,1.06628571,118900.0,118890.0,0.9709975]
[1754863788048,0.7512031,118900.0,118890.0,1.0223775]
[1754863788652,0.5829871,118900.0,118890.0,1.0223775]
[1754863790157,0.0214067,118900.0,118890.0,1.72264011]
[1754863790463,0.0001,118900.0,118890.0,1.72264011]
[1754863790943,0.0001,118900.0,118890.0,1.4075575]
[1754863791250,0.02144969,118900.0,118890.0,1.4075575]
[1754863792155,0.12886999,118900.0,118890.0,1.4075575]
[1754863792456,0.04477969,118900.0,118890.0,1.4075575]
[1754863792755,0.12886999,118900.0,118890.0,1.4075575]
[1754863793757,0.04477969,118900.0,118890.0,1.4075575]
[1754863794054,0.02144969,118900.0,118890.0,1.4075575]
[1754863794253,0.10553999,118900.0,118890.0,0.5426375]
[1754863794459,0.10553999,118900.0,118890.0,1.4045575]
[1754863794460,0.12886999,118900.0,118890.0,1.4045575]
[1754863794644,0.02144969,118900.0,118890.0,1.4045575]
[1754863795051,0.10553999,118900.0,118890.0,1.4045575]
[1754863795660,0.02144969,118900.0,118890.0,1.71964011]
[1754863797358,0.01888597,118910.0,118900.0,0.06063]
[1754863797562,0.01888597,118910.0,118900.0,0.82060291]
[1754863797950,0.01888597,118910.0,118900.0,1.98388291]
[1754863798552,0.02188597,118910.0,118900.0,1.98388291]
[1754863798858,0.1914734,118930.0,118920.0,0.1089861]
[1754863799064,0.29543032,118940.0,118920.0,1.5700298]
[1754863799248,0.02333,118930.0,118920.0,1.5700298]
[1754863799653,0.02333,118930.0,118920.0,1.5796098]
[1754863800458,0.01874972,118940.0,118930.0,0.0840691]
[1754863800658,0.02343,118940.0,118930.0,0.78486171]
[1754863800860,0.0001,118940.0,118930.0,0.78486171]
[1754863801160,0.2847759,118970.0,118960.0,0.1089579]
[1754863801464,0.02333,118970.0,118960.0,0.9649179]
[1754863801663,0.04034196,118990.0,118980.0,0.1089438]
[1754863801861,0.12436866,118990.0,118980.0,0.9647038]
[1754863802158,0.10103866,118990.0,118980.0,0.9647038]
[1754863802359,0.12446866,118990.0,118980.0,0.9648038]
[1754863802561,0.04044196,118990.0,118980.0,0.9648038]
[1754863803065,0.04044196,118990.0,118980.0,1.3256038]
[1754863803461,0.12446866,118990.0,118980.0,1.3243638]
[1754863804059,0.13646866,118990.0,118980.0,1.3253638]
[1754863804467,0.13146866,118990.0,118980.0,1.3253638]
[1754863804664,0.13546866,118990.0,118980.0,1.3253638]
[1754863805066,0.13146866,118990.0,118980.0,1.3273638]
[1754863805265,0.12646866,118990.0,118980.0,1.3263638]
[1754863806761,0.12646866,118990.0,118980.0,0.4718438]
[1754863806967,0.89725127,118990.0,118980.0,0.9632038]
[1754863807167,0.58216866,118990.0,118980.0,0.9632038]
[1754863808575,0.22136866,118990.0,118980.0,0.9632038]
[1754863811076,0.58216866,118990.0,118980.0,0.9632038]
[1754863811561,0.22136866,118990.0,118980.0,0.9632038]
[1754863811763,0.89725127,118990.0,118980.0,0.02701]
[1754863811971,0.89725127,118990.0,118980.0,0.85098]
[1754863812167,0.89725127,118990.0,118980.0,0.9445937]
[1754863812469,0.15094866,118990.0,118980.0,0.9599237]
[1754863812667,0.12646866,118990.0,118980.0,0.9599237]
[1754863813169,0.48726866,118990.0,118980.0,0.9599237]
[1754863813868,0.40324196,118990.0,118980.0,0.9599237]
[1754863814266,0.48726866,118990.0,118980.0,0.9599237]
[1754863814867,0.56017866,118990.0,118980.0,0.9599237]
[1754863815173,0.58222866,118990.0,118980.0,0.9599237]
[1754863816875,0.58222866,118990.0,118980.0,0.1110437]
[1754863817075,0.58222866,118990.0,118980.0,0.9584037]
[1754863817677,0.58222866,118990.0,118980.0,0.1110437]
[1754863817874,0.58222866,118990.0,118980.0,0.9578837]
[1754863818077,0.58222866,118990.0,118980.0,0.9574037]
[1754863819878,0.22142866,118990.0,118980.0,0.9574037]
[1754863820480,0.58222866,118990.0,118980.0,0.9574037]
[1754863822877,0.91798753,118990.0,118980.0,0.0021]
[1754863823078,1.38607553,118990.0,118980.0,0.84498]
[1754863823288,0.60290492,118990.0,118980.0,0.9290137]
[1754863823476,0.91798753,118990.0,118980.0,0.9385937]
[1754863825473,0.91798753,118990.0,118980.0,0.9290137]
[1754863825674,0.91798753,118990.0,118960.0,0.01706091]
[1754863825675,0.2022008,118970.0,118960.0,0.01706091]
[1754863825879,0.89875967,118970.0,118960.0,0.84172]
[1754863826075,1.06687967,118970.0,118960.0,0.84172]
[1754863826476,0.0472,118950.0,118940.0,0.3458214]
[1754863826678,0.22289116,118950.0,118940.0,1.1032807]
[1754863826883,0.53807377,118950.0,118940.0,1.1033807]
[1754863827084,0.22299116,118950.0,118940.0,1.1033807]
[1754863827886,0.22299116,118950.0,118940.0,1.1093807]
[1754863828087,0.04397626,118950.0,118940.0,1.4701807]
[1754863828385,0.02077626,118950.0,118940.0,1.78936331]
[1754863828688,0.02077626,118950.0,118940.0,1.4742807]
[1754863828689,0.0001,118950.0,118940.0,1.4742807]
[1754863828888,0.0001,118950.0,118940.0,1.78936331]
[1754863830993,0.0001,118950.0,118940.0,1.78931217]
[1754863836790,0.2161089,118980.0,118970.0,0.1025608]
[1754863836994,0.30714961,118980.0,118970.0,0.9496008]
[1754863837793,0.22311481,118980.0,118970.0,0.9496008]
[1754863837995,0.22321481,118980.0,118970.0,1.3105008]
[1754863838395,0.22821481,118980.0,118970.0,1.3115008]
[1754863838594,0.22821481,118980.0,118970.0,0.9507008]
[1754863838897,0.23221481,118980.0,118970.0,0.9507008]
[1754863839894,0.23221481,118980.0,118970.0,1.3115008]
[1754863841100,0.23221481,118980.0,118970.0,1.62863227]
[1754863841101,0.02988071,118980.0,118970.0,1.62863227]
[1754863841407,0.23221441,118980.0,118970.0,1.3075008]
[1754863842405,0.14818071,118980.0,118970.0,1.3075008]
[1754863842798,0.23221441,118980.0,118970.0,1.3075008]
[1754863843906,0.14818071,118980.0,118970.0,1.3075008]
[1754863844303,0.14818071,118980.0,118970.0,1.3096008]
[1754863846415,0.23221441,118980.0,118970.0,1.3096008]
[1754863847212,0.14818071,118980.0,118970.0,1.3096008]
[1754863847907,0.23221441,118980.0,118970.0,1.3096008]
[1754863848712,0.14818071,118980.0,118970.0,1.3096008]
[1754863849213,0.1274,118980.0,118970.0,1.3096008]
[1754863849714,0.2114337,118980.0,118970.0,1.3096008]
[1754863850215,0.1274,118980.0,118970.0,1.3096008]
[1754863852111,0.11337,118980.0,118970.0,1.3096008]
[1754863852313,0.0572,118980.0,118970.0,1.3096008]
[1754863854311,0.1412337,118980.0,118970.0,1.3096008]
[1754863854507,0.1741937,118980.0,118970.0,1.3096008]
[1754863854708,0.1882237,118980.0,118970.0,1.3096008]
[1754863855015,0.2114337,118980.0,118970.0,1.3096008]
[1754863856115,0.43539227,118980.0,118970.0,0.9391808]
[1754863856616,0.43539227,118980.0,118970.0,0.9389008]
[1754863857012,0.79619227,118980.0,118970.0,0.9389008]
[1754863857312,0.43539227,118980.0,118970.0,0.9389008]
[1754863857508,0.43539227,118980.0,118970.0,0.0011]
[1754863857709,0.98507895,118980.0,118970.0,0.82626]
[1754863858314,0.98507895,118980.0,118970.0,0.9103007]
[1754863858514,0.76112038,118980.0,118970.0,0.9103007]
[1754863859019,0.98507895,118980.0,118970.0,0.9103007]
[1754863859720,0.81697495,118980.0,118970.0,0.9103007]
[1754863861718,0.45617495,118980.0,118970.0,0.9197807]
[1754863861916,0.05315268,118980.0,118970.0,1.3012007]
[1754863862111,0.0091,118980.0,118970.0,1.52515927]
[1754863863020,0.02327,119000.0,118990.0,0.31443557]
[1754863863317,0.02327,119000.0,118990.0,1.49827557]
[1754863864616,0.46207765,119020.0,119000.0,0.2545292]
[1754863864821,0.0841129,119010.0,119000.0,0.92727767]
[1754863865025,0.0001,119010.0,119000.0,1.74943767]
[1754863865231,0.1073829,119010.0,119000.0,1.74943767]
[1754863865623,0.02337,119010.0,119000.0,1.74943767]
[1754863865930,0.02537,119010.0,119000.0,1.5254791]
[1754863866231,0.1123829,119010.0,119000.0,1.5254791]
[1754863866539,0.02837,119010.0,119000.0,1.5254791]
[1754863866924,0.2071529,119010.0,119000.0,0.7033191]
[1754863867230,0.2071529,119010.0,119000.0,1.1644791]
[1754863867725,0.43111147,119010.0,119000.0,1.0804592]
[1754863867926,0.49778837,119010.0,119000.0,0.2520492]
[1754863868129,0.49778837,119010.0,119000.0,1.0752892]
[1754863869224,0.49778837,119010.0,119000.0,0.9912693]
[1754863870836,0.49778837,119010.0,119000.0,0.9952393]
[1754863872634,0.2038898,119010.0,119000.0,0.9952393]
[1754863874131,0.1790598,119010.0,119000.0,0.9952393]
[1754863874334,0.0051,119010.0,119000.0,1.57999787]
[1754863874540,0.0051,119010.0,119000.0,1.80395644]
[1754863874732,0.02493,119040.0,119030.0,0.0904487]
[1754863875036,0.02493,119040.0,119030.0,1.13212727]
[1754863875633,0.1089217,119040.0,119030.0,0.9081687]
[1754863875832,0.1090217,119040.0,119030.0,0.9082687]
[1754863876033,0.1150217,119040.0,119030.0,0.9082687]
[1754863876233,0.1190217,119040.0,119030.0,0.9082687]
[1754863885035,0.1525517,119040.0,119030.0,0.9082687]
[1754863887643,0.1190217,119040.0,119030.0,0.9082687]
[1754863890142,0.1924417,119040.0,119030.0,0.9082687]
[1754863891146,0.1774917,119040.0,119030.0,0.9082687]
[1754863891446,0.1190217,119040.0,119030.0,0.9082687]
[1754863891638,0.13974528,119040.0,119030.0,0.9082687]
[1754863892247,0.13974528,119040.0,119030.0,1.2690687]
[1754863892639,0.05575358,119040.0,119030.0,1.2690687]
[1754863893243,0.13974538,119040.0,119030.0,1.2690687]
[1754863893640,0.18822538,119040.0,119030.0,1.2690687]
[1754863894446,0.21316538,119040.0,119030.0,1.2690687]
[1754863894642,0.21316538,119040.0,119030.0,0.4513487]
[1754863894947,0.91006406,119040.0,119030.0,0.8956188]
[1754863895447,0.91006406,119040.0,119030.0,0.81162]
[1754863896147,0.91006406,119040.0,119030.0,0.8956188]
[1754863896340,0.91006406,119040.0,119030.0,0.8980988]
[1754863897145,0.91006406,119040.0,119020.0,0.00248]
[1754863897146,0.0990788,119030.0,119020.0,0.00248]
[1754863897351,0.0990788,119030.0,119020.0,0.8973659]
[1754863897352,0.53913106,119030.0,119020.0,0.8973659]
[1754863897945,0.53913106,119030.0,119020.0,0.9013359]
[1754863898354,0.54113106,119030.0,119020.0,0.9013359]
[1754863898554,0.54123106,119030.0,119020.0,0.9014359]
[1754863899353,0.54523106,119030.0,119020.0,0.9014359]
[1754863899545,0.54523106,119030.0,119020.0,0.8974659]
[1754863900154,0.45443948,119030.0,119020.0,0.8974659]
[1754863901357,0.45443948,119030.0,119020.0,0.9014359]
[1754863910556,0.23059238,119030.0,119020.0,0.9014359]
[1754863910764,0.45443948,119030.0,119020.0,0.9014359]
[1754863913468,0.02682358,119030.0,119020.0,1.486083]
[1754863913763,0.0061,119030.0,119020.0,1.486083]
[1754863913958,0.0900988,119030.0,119020.0,1.2622359]
[1754863914163,0.1141488,119030.0,119020.0,1.2622359]
[1754863914466,0.1141488,119030.0,119020.0,0.4513559]
[1754863914667,0.1141488,119030.0,119020.0,1.2576359]
[1754863914968,0.3379959,119030.0,119020.0,1.2576359]
[1754863916963,0.2539971,119030.0,119020.0,1.2576359]
[1754863917171,0.0061,119030.0,119020.0,1.2576359]
[1754863917759,0.1141489,119030.0,119020.0,1.2576359]
[1754863917960,0.337896,119030.0,119020.0,0.80628]
[1754863918161,0.698696,119030.0,119020.0,0.8902859]
[1754863920169,0.1140489,119030.0,119020.0,0.8902859]
[1754863920371,0.337996,119030.0,119020.0,0.8903859]
[1754863920560,0.698796,119030.0,119020.0,0.8903859]
[1754863920760,0.337996,119030.0,119020.0,0.8903859]
[1754863921563,0.698796,119030.0,119020.0,0.8903859]
[1754863921972,0.794516,119030.0,119020.0,0.8903859]
[1754863922662,0.698796,119030.0,119020.0,0.8903859]
[1754863922875,0.794516,119030.0,119020.0,0.8903859]
[1754863923571,0.433716,119030.0,119020.0,0.8903859]
[1754863923872,0.794516,119030.0,119020.0,0.8903859]
[1754863924370,0.433716,119030.0,119020.0,0.8903859]
[1754863924568,0.794516,119030.0,119020.0,0.8903859]
[1754863925473,0.794516,119030.0,119020.0,0.8861459]
[1754863926172,0.81528354,119030.0,119020.0,0.8861459]
[1754863926473,0.794516,119030.0,119020.0,0.8861459]
[1754863931578,0.39095,119030.0,119020.0,0.8861459]
[1754863931772,0.03015,119030.0,119020.0,0.8861459]
[1754863932979,0.03087,119030.0,119020.0,0.8861459]
[1754863933870,0.1148688,119030.0,119020.0,0.8861459]
[1754863934574,0.03087,119030.0,119020.0,0.8861459]
[1754863938478,0.1148688,119030.0,119020.0,0.8861459]
[1754863938673,0.1483788,119030.0,119020.0,0.8861459]
[1754863938878,0.2101688,119030.0,119020.0,0.8861459]
[1754863939781,0.05557,119030.0,119020.0,0.8861459]
[1754863939976,0.03087,119030.0,119020.0,0.8861459]
[1754863940384,0.06438,119030.0,119020.0,0.8861459]
[1754863940582,0.08908,119030.0,119020.0,0.8861459]
[1754863940882,0.1730788,119030.0,119020.0,0.8861459]
[1754863941083,0.7948159,119030.0,119020.0,0.8861459]
[1754863941785,0.7108171,119030.0,119020.0,0.8861459]
[1754863942086,0.43964,119030.0,119020.0,0.8861459]
[1754863942383,0.41637,119030.0,119020.0,0.8861459]
[1754863944785,0.3669,119030.0,119020.0,1.109993]
[1754863947487,0.39167,119030.0,119020.0,1.109993]
[1754863949382,0.0061,119030.0,119020.0,1.109993]
[1754863949688,0.0061,119030.0,119020.0,1.470793]
[1754863949878,0.5400776,119060.0,119050.0,0.0839847]
[1754863950078,0.56084246,119060.0,119050.0,0.8838247]
[1754863950580,0.58561246,119060.0,119050.0,0.8838247]
[1754863951189,0.58861246,119060.0,119050.0,0.8838247]
[1754863951390,0.59071246,119060.0,119050.0,0.8839247]
[1754863951586,0.50673486,119060.0,119050.0,0.8839247]
[1754863951784,0.59900938,119060.0,119050.0,0.8839247]
[1754863953092,0.66569853,119060.0,119050.0,0.8839247]
[1754863953689,0.23385261,119060.0,119050.0,1.3510947]
[1754863953995,0.28182261,119060.0,119050.0,1.3510947]
[1754863954292,0.50566971,119060.0,119050.0,1.3510947]
[1754863954592,0.50566971,119060.0,119050.0,1.3356247]
[1754863955789,0.52065971,119060.0,119050.0,1.3356247]
[1754863955995,0.52065971,119060.0,119050.0,0.8932547]
[1754863956186,0.88145971,119060.0,119050.0,0.8839247]
[1754863958285,0.52065971,119060.0,119050.0,0.8839247]
[1754863959193,0.88145971,119060.0,119050.0,0.8839247]
[1754863959700,0.88141877,119060.0,119050.0,0.8839247]
[1754863960498,0.52061877,119060.0,119050.0,0.8839247]
[1754863960993,0.88141877,119060.0,119050.0,0.9124847]
[1754863961300,0.52061877,119060.0,119050.0,0.9124847]
[1754863961500,0.52061877,119060.0,119050.0,0.9367547]
[1754863962494,0.52061877,119060.0,119050.0,0.9744847]
[1754863965602,0.88141877,119060.0,119050.0,0.9744847]
[1754863969099,0.52061877,119060.0,119050.0,0.9744847]
[1754863969506,0.29677167,119060.0,119050.0,0.9744847]
[1754863969705,0.52061877,119060.0,119050.0,0.9744847]
[1754863972807,0.88141877,119060.0,119050.0,0.9744847]
[1754863975908,0.88141877,119060.0,119040.0,0.093322]
[1754863975909,0.3833246,119050.0,119040.0,0.093322]
[1754863976107,0.169872,119040.0,119030.0,1.1880222]
[1754863976303,0.3937191,119040.0,119030.0,1.1880222]
[1754863976499,0.203162,119040.0,119030.0,1.1880222]
[1754863976703,0.4270091,119040.0,119030.0,1.1880222]
[1754863977310,0.44775695,119040.0,119030.0,1.1880222]
[1754863977511,0.44785695,119040.0,119030.0,1.1881222]
[1754863978712,1.03350405,119040.0,119030.0,0.136929]
[1754863978905,1.03350405,119040.0,119030.0,0.79926]
[1754863979805,1.03350405,119040.0,119030.0,0.883259]
[1754863980412,1.03350405,119040.0,119030.0,0.79922]
[1754863981116,0.44885695,119040.0,119030.0,0.973779]
[1754863981313,0.44885695,119040.0,119030.0,0.989249]
[1754863981515,0.17672985,119040.0,119030.0,0.989249]
[1754863981809,0.43386695,119040.0,119030.0,0.989249]
[1754863982112,0.44885695,119040.0,119030.0,0.989249]
[1754863983207,0.44885695,119040.0,119030.0,0.973779]
[1754863983606,0.80965695,119040.0,119030.0,0.973779]
[1754863986313,0.80965695,119040.0,119030.0,0.883219]
[1754863986615,0.80965695,119040.0,119030.0,0.935949]
[1754863986917,0.80965695,119040.0,119030.0,0.973699]
[1754863987214,0.80965695,119040.0,119010.0,0.43639]
[1754863987215,0.1098762,119020.0,119010.0,0.43639]
[1754863987409,0.80712509,119020.0,119010.0,0.82934]
[1754863987609,0.80712509,119020.0,119010.0,0.9734132]
[1754863988210,0.80712509,119020.0,119010.0,0.1744932]
[1754863988420,0.80722509,119020.0,119010.0,0.9734732]
[1754863988618,0.80722509,119020.0,119010.0,0.9784732]
[1754863989517,0.80722509,119020.0,119010.0,0.9804732]
[1754863990118,0.80822509,119020.0,119010.0,0.9784732]
[1754863990318,0.80822509,119020.0,119010.0,0.9939432]
[1754863991011,0.44742509,119020.0,119010.0,0.9939432]
[1754863991213,0.80822509,119020.0,119010.0,0.9784732]
[1754863991813,0.80822509,119020.0,119010.0,0.0001]
[1754863992015,0.2017603,119000.0,118980.0,0.47684224]
[1754863992219,0.4256145,118990.0,118980.0,1.51933434]
[1754863992424,0.4256145,118990.0,118980.0,1.07450314]
[1754863993317,0.4256145,118990.0,118980.0,1.07750314]
[1754863993518,0.4257145,118990.0,118980.0,1.08660314]